bitfinex-derivatives/quotes_SOLF0:USTF0_20260118
["timestamp","ask_amount","ask_price","bid_price","bid_amount"]
[1768736676526,21.1,142.5,142.4,3.24996263]
[1768736677125,1.22156698,142.59,142.44,0.05291416]
[1768736677126,22.32156698,142.59,142.44,0.05291416]
[1768736677326,21.1,142.57,142.44,0.05291416]
[1768736677624,21.1,142.55,142.4,3.24996263]
[1768736677821,21.1,142.53,142.4,3.24996263]
[1768736678023,21.1,142.51,142.4,3.24996263]
[1768736678220,26.297302,142.5,142.4,3.24996263]
[1768736678421,0.04856142,142.48,142.4,3.24996263]
[1768736684823,5.20471449,142.47,142.4,3.24996263]
[1768736685024,0.04856142,142.48,142.4,3.24996263]
[1768736685528,21.1,142.57,142.4,3.24996263]
[1768736685726,0.04779612,142.45,142.4,3.24996263]
[1768736686230,21.1,142.55,142.4,3.24996263]
[1768736686426,21.1,142.53,142.4,3.24996263]
[1768736686730,0.05199466,142.44,142.4,3.24996263]
[1768736686931,21.1,142.51,142.4,3.24996263]
[1768736687127,21.1,142.49,142.4,3.24996263]
[1768736687326,0.04476676,142.43,142.4,3.24996263]
[1768736687532,21.1,142.49,142.4,3.24996263]
[1768736687733,5.20799492,142.48,142.43,0.05233886]
[1768736687936,5.20799492,142.47,142.43,0.05233886]
[1768736688133,21.1,142.57,142.43,0.05233886]
[1768736688334,21.1,142.55,142.43,0.05233886]
[1768736688530,21.1,142.53,142.43,0.05233886]
[1768736688727,21.1,142.51,142.4,3.24996263]
[1768736688927,5.2076549,142.5,142.48,0.04989522]
[1768736689129,26.3076549,142.49,142.4,3.24996263]
[1768736689336,0.05181261,142.47,142.4,3.24996263]
[1768736692342,5.20809903,142.46,142.37,3.28699409]
[1768736692532,0.05181261,142.47,142.37,3.28699409]
[1768736692840,5.20829994,142.46,142.37,3.28699409]
[1768736693040,21.1,142.55,142.37,3.28699409]
[1768736693241,0.05085963,142.43,142.37,3.28699409]
[1768736693641,21.1,142.53,142.37,3.28699409]
[1768736693940,21.1,142.51,142.37,3.28699409]
[1768736694243,21.1,142.49,142.39,3.28699409]
[1768736694441,26.30732537,142.48,142.39,3.28699409]
[1768736694642,5.20732537,142.47,142.39,3.28699409]
[1768736694844,5.20732537,142.46,142.39,3.28699409]
[1768736695141,21.1,142.48,142.39,3.28699409]
[1768736695342,5.20577767,142.47,142.39,3.28699409]
[1768736695643,0.04995885,142.44,142.39,3.28699409]
[1768736695838,0.04995885,142.44,142.34,3.28699409]
[1768736696342,21.1,142.51,142.34,3.28699409]
[1768736696541,0.04825988,142.4,142.34,3.28699409]
[1768736696932,21.1,142.49,142.34,3.28699409]
[1768736697137,21.1,142.47,142.34,3.28699409]
[1768736697337,5.2,142.52,142.34,3.28699409]
[1768736697338,21.1,142.45,142.34,3.28699409]
[1768736697542,5.20476681,142.44,142.34,3.28699409]
[1768736697743,21.1,142.45,142.39,0.04480873]
[1768736697946,5.20305278,142.44,142.39,0.04480873]
[1768736698144,21.1,142.45,142.39,0.04480873]
[1768736698344,5.20135784,142.44,142.36,3.28699409]
[1768736698643,21.1,142.51,142.36,3.28699409]
[1768736698842,21.1,142.49,142.39,0.04795769]
[1768736699030,21.1,142.47,142.39,0.04795769]
[1768736699232,21.1,142.45,142.36,3.28699409]
[1768736699639,21.1,142.45,142.42,0.0521839]
[1768736699837,21.1,142.45,142.36,3.28699409]
[1768736700032,5.19966493,142.44,142.36,3.28699409]
[1768736700241,0.04800731,142.42,142.36,3.28699409]
[1768736700642,21.1,142.51,142.36,3.28699409]
[1768736700843,21.1,142.49,142.36,3.28699409]
[1768736701042,21.1,142.47,142.36,3.28699409]
[1768736701235,0.04690152,142.4,142.36,3.28699409]
[1768736701641,21.1,142.45,142.36,3.28699409]
[1768736701940,0.04955267,142.39,142.36,3.28699409]
[1768736702341,21.1,142.51,142.36,3.28699409]
[1768736702541,21.1,142.49,142.36,3.28699409]
[1768736702738,21.1,142.47,142.36,3.28699409]
[1768736702940,0.05391402,142.39,142.36,3.28699409]
[1768736703337,21.1,142.45,142.3,3.28699409]
[1768736703550,26.29436772,142.44,142.3,3.28699409]
[1768736703741,0.04721407,142.39,142.3,3.28699409]
[1768736704141,21.1,142.44,142.3,3.28699409]
[1768736704437,0.04981725,142.36,142.3,3.28699409]
[1768736704644,21.1,142.51,142.3,3.28699409]
[1768736704844,21.1,142.49,142.36,0.05072111]
[1768736705046,21.1,142.47,142.36,0.05072111]
[1768736705248,21.1,142.45,142.35,3.28699409]
[1768736705449,26.29268084,142.44,142.35,3.28699409]
[1768736705650,21.1,142.44,142.35,3.28699409]
[1768736705951,21.1,142.44,142.39,0.04748568]
[1768736706641,5.18971757,142.43,142.35,3.28699409]
[1768736706848,21.14479151,142.43,142.35,3.28699409]
[1768736708047,0.04479151,142.43,142.35,3.28699409]
[1768736737175,5.23782608,142.42,142.35,3.28699409]
[1768736737375,0.04479151,142.43,142.35,3.28699409]
[1768736737576,5.23799463,142.42,142.35,3.28699409]
[1768736737777,21.1,142.49,142.35,3.28699409]
[1768736737979,21.1,142.47,142.35,3.28699409]
[1768736738276,0.04757929,142.4,142.35,3.28699409]
[1768736738779,21.1,142.45,142.35,3.28699409]
[1768736739077,26.33929227,142.44,142.35,3.28699409]
[1768736739272,0.04663207,142.39,142.35,3.28699409]
[1768736756184,8.50514984,142.38,142.24,13.10864616]
[1768736756387,3.25931504,142.38,142.26,13.10864616]
[1768736757182,3.25931504,142.38,142.25,13.10864616]
[1768736757388,3.25931504,142.38,142.24,13.10864616]
[1768736757588,3.25931504,142.38,142.31,0.04796843]
[1768736758184,3.25931504,142.38,142.32,3.31498368]
[1768736759494,8.5326909,142.37,142.31,0.04796843]
[1768736759689,5.23871667,142.36,142.31,0.04796843]
[1768736759995,3.29397423,142.37,142.3,3.31498368]
[1768736760194,5.2386388,142.36,142.3,3.31498368]
[1768736760391,3.29397423,142.37,142.32,0.04569032]
[1768736760587,3.29397423,142.35,142.3,3.31498368]
[1768736760788,5.23854076,142.34,142.28,3.31498368]
[1768736760984,5.23777871,142.33,142.26,3.31498368]
[1768736761191,3.29397423,142.34,142.26,3.31498368]
[1768736761390,5.23759738,142.33,142.26,3.31498368]
[1768736761591,3.29397423,142.34,142.26,3.31498368]
[1768736762093,0.0515012,142.31,142.26,3.31498368]
[1768736779710,21.1,142.39,142.26,3.31498368]
[1768736779914,3.29397423,142.36,142.27,0.05295705]
[1768736780111,3.29397423,142.36,142.28,3.31498368]
[1768736781320,3.29397423,142.36,142.31,0.04901979]
[1768736781818,3.29397423,142.36,142.29,3.31498368]
[1768736782218,3.29397423,142.36,142.32,0.05021339]
[1768736785723,3.33709908,142.4,142.32,3.08790845]
[1768736786427,3.33709908,142.4,142.32,3.03769506]
[1768736786618,3.33709908,142.4,142.35,0.04982265]
[1768736802334,17.48231211,142.5,142.35,3.26030203]
[1768736802335,3.25828424,142.43,142.35,3.26030203]
[1768736802531,3.25828424,142.44,142.35,3.26030203]
[1768736802928,3.25828424,142.44,142.35,3.21047938]
[1768736803237,3.25828424,142.44,142.38,0.05027608]
[1768736803735,3.25828424,142.44,142.37,3.21047938]
[1768736804137,3.25828424,142.44,142.4,0.05363542]
[1768736806039,3.25828424,142.49,142.4,3.2641148]
[1768736806242,3.25828424,142.46,142.4,3.2641148]
[1768736806540,3.25828424,142.46,142.4,3.21047938]
[1768736806939,3.25828424,142.46,142.42,0.04946581]
[1768736807740,21.09,142.53,142.42,0.04946581]
[1768736807931,21.09,142.51,142.42,0.04946581]
[1768736808127,21.09,142.49,142.42,0.04946581]
[1768736808330,26.30729216,142.48,142.4,3.21047938]
[1768736808536,21.09,142.48,142.4,3.21047938]
[1768736809338,0.05094606,142.45,142.4,3.21047938]
[1768736809532,0.05094606,142.45,142.4,0.22601689]
[1768736809839,3.25828424,142.47,142.4,0.22601689]
[1768736810237,0.04834435,142.44,142.4,0.22601689]
[1768736820545,3.25828424,142.47,142.4,0.22601689]
[1768736820741,3.1124789,142.54,142.4,0.22601689]
[1768736821044,3.1124789,142.51,142.42,3.19421012]
[1768736822042,3.1124789,142.51,142.45,0.04484194]
[1768736826846,3.1124789,142.51,142.45,3.23905206]
[1768736832953,3.1124789,142.54,142.45,3.23905206]
[1768736833254,197.06,142.56,142.45,3.23905206]
[1768736833255,24.2024789,142.52,142.45,3.23905206]
[1768736833454,24.2024789,142.52,142.45,3.19421012]
[1768736833849,24.2024789,142.52,142.47,0.05171573]
[1768736834054,0.04910381,142.5,142.45,3.19421012]
[1768736851863,3.26820121,142.5,142.35,13.10864616]
[1768736852265,3.2190974,142.5,142.35,13.10864616]
[1768736852857,3.2190974,142.5,142.41,0.05066718]
[1768736853461,5.24213833,142.49,142.35,13.10864616]
[1768736853663,3.2190974,142.5,142.35,13.10864616]
[1768736853863,5.2421361,142.49,142.36,3.19660837]
[1768736854063,3.2190974,142.5,142.36,3.19660837]
[1768736854259,3.2190974,142.5,142.42,3.19660837]
[1768736855166,3.2190974,142.5,142.45,0.04644283]
[1768736860272,5.24813243,142.49,142.45,0.04644283]
[1768736860472,3.2190974,142.5,142.45,0.04644283]
[1768736860671,5.24813243,142.49,142.45,0.04644283]
[1768736860971,3.2190974,142.5,142.45,0.04644283]
[1768736861164,5.24813243,142.49,142.45,0.04644283]
[1768736861360,3.2190974,142.5,142.45,0.04644283]
[1768736861564,5.24946311,142.49,142.45,0.04644283]
[1768736861764,3.2190974,142.5,142.45,0.04644283]
[1768736861972,5.24946311,142.49,142.45,0.04644283]
[1768736862169,3.2190974,142.5,142.45,0.04644283]
[1768736862363,5.25099649,142.49,142.45,0.04644283]
[1768736862566,3.2190974,142.5,142.45,0.04644283]
[1768736862866,5.25095019,142.49,142.45,0.04644283]
[1768736863066,3.2190974,142.5,142.45,0.04644283]
[1768736863266,5.25095019,142.49,142.45,0.04644283]
[1768736863467,3.2190974,142.5,142.45,0.04644283]
[1768736863675,5.25276986,142.49,142.45,0.04644283]
[1768736863870,3.2190974,142.5,142.45,0.04644283]
[1768736864066,5.25281618,142.49,142.45,0.04644283]
[1768736864267,3.2190974,142.5,142.45,0.04644283]
[1768736864572,5.25489142,142.49,142.45,0.04644283]
[1768736864773,3.2190974,142.5,142.45,0.04644283]
[1768736864974,5.25489142,142.49,142.45,0.04644283]
[1768736865176,3.2190974,142.5,142.45,0.04644283]
[1768736865374,5.25498829,142.49,142.45,0.04644283]
[1768736865567,3.2190974,142.5,142.45,0.04644283]
[1768736865769,5.25498829,142.49,142.45,0.04644283]
[1768736865969,3.2190974,142.5,142.45,0.04644283]
[1768736866176,5.25498829,142.49,142.45,0.04644283]
[1768736866475,3.2190974,142.5,142.45,0.04644283]
[1768736866678,5.25570995,142.49,142.45,0.04644283]
[1768736866872,3.2190974,142.5,142.45,0.04644283]
[1768736867072,5.25570995,142.49,142.45,0.04644283]
[1768736867274,3.2190974,142.5,142.45,0.04644283]
[1768736867574,5.25614983,142.49,142.45,0.04644283]
[1768736867774,5.25614983,142.48,142.45,0.04644283]
[1768736867977,3.2190974,142.5,142.45,0.04644283]
[1768736868276,5.25619618,142.49,142.45,0.04644283]
[1768736868476,5.25619618,142.48,142.45,0.04644283]
[1768736868679,3.2190974,142.5,142.45,0.04644283]
[1768736868881,5.25670464,142.49,142.45,0.04644283]
[1768736869082,5.25670464,142.48,142.45,0.04644283]
[1768736869272,3.2190974,142.5,142.45,0.04644283]
[1768736869478,5.25726604,142.49,142.45,0.04644283]
[1768736869674,5.25726604,142.48,142.45,0.04644283]
[1768736869875,3.2190974,142.5,142.45,0.04644283]
[1768736870075,5.25726604,142.49,142.45,0.04644283]
[1768736870278,5.25726604,142.48,142.45,0.04644283]
[1768736870482,3.2190974,142.5,142.45,0.04644283]
[1768736870780,5.25789423,142.49,142.45,0.04644283]
[1768736870981,5.25789423,142.48,142.45,0.04644283]
[1768736871182,3.2190974,142.5,142.45,0.04644283]
[1768736871382,5.25845993,142.49,142.45,0.04644283]
[1768736871585,5.25845993,142.48,142.45,0.04644283]
[1768736871785,3.2190974,142.5,142.45,0.04644283]
[1768736871985,5.25845993,142.49,142.45,0.04644283]
[1768736872186,5.25845993,142.48,142.45,0.04644283]
[1768736872485,3.2190974,142.5,142.45,0.04644283]
[1768736872686,5.25838852,142.49,142.45,0.04644283]
[1768736872887,5.25838852,142.48,142.45,0.04644283]
[1768736873087,3.2190974,142.5,142.45,0.04644283]
[1768736873279,3.25833275,142.48,142.42,3.30818392]
[1768736873480,3.30647994,142.48,142.42,3.30818392]
[1768736894510,0.04814719,142.48,142.42,3.30818392]
[1768736895702,3.25833275,142.52,142.42,3.30818392]
[1768736895903,5.26049463,142.51,142.45,3.30818392]
[1768736896101,3.25833275,142.52,142.45,3.30818392]
[1768736896102,5.26049463,142.5,142.45,3.30818392]
[1768736896305,3.25833275,142.52,142.45,3.30818392]
[1768736896503,5.25953675,142.51,142.45,3.30818392]
[1768736896706,5.25953675,142.5,142.45,3.30818392]
[1768736896907,3.25833275,142.52,142.45,3.30818392]
[1768736897106,5.25953675,142.51,142.47,0.04945301]
[1768736897304,5.25953675,142.5,142.47,0.04945301]
[1768736897505,3.25833275,142.52,142.47,0.04945301]
[1768736897804,5.25831575,142.51,142.47,0.04945301]
[1768736897998,3.25833275,142.52,142.47,0.04945301]
[1768736897999,5.25831575,142.5,142.47,0.04945301]
[1768736898202,3.25833275,142.52,142.47,0.04945301]
[1768736898411,5.25747163,142.51,142.47,0.04945301]
[1768736898606,5.25747163,142.5,142.47,0.04945301]
[1768736898808,3.25833275,142.52,142.47,0.04945301]
[1768736899007,5.25746772,142.51,142.47,0.04945301]
[1768736899207,5.25746772,142.5,142.47,0.04945301]
[1768736899409,3.25833275,142.52,142.47,0.04945301]
[1768736899611,5.25673061,142.51,142.47,0.04945301]
[1768736899811,5.25673061,142.5,142.47,0.04945301]
[1768736900002,3.25833275,142.52,142.47,0.04945301]
[1768736900202,5.25673061,142.51,142.47,0.04945301]
[1768736900404,5.25673061,142.5,142.47,0.04945301]
[1768736900604,3.25833275,142.52,142.47,0.04945301]
[1768736900804,5.25608248,142.51,142.47,0.04945301]
[1768736901112,5.25608248,142.5,142.47,0.04945301]
[1768736901311,3.25833275,142.52,142.47,0.04945301]
[1768736901515,5.25551448,142.51,142.47,0.04945301]
[1768736901815,5.25551448,142.5,142.47,0.04945301]
[1768736902004,3.25833275,142.52,142.47,0.04945301]
[1768736902206,5.25551448,142.51,142.47,0.04945301]
[1768736902406,5.25551448,142.5,142.47,0.04945301]
[1768736902605,3.25833275,142.52,142.47,0.04945301]
[1768736902809,8.51873926,142.51,142.47,0.04945301]
[1768736903011,5.25501017,142.5,142.47,0.04945301]
[1768736903199,3.26372909,142.51,142.45,3.30818392]
[1768736903503,5.25455859,142.5,142.45,3.30818392]
[1768736903705,3.26372909,142.51,142.47,0.04932879]
[1768736904006,5.25460492,142.5,142.47,0.04932879]
[1768736904210,3.26372909,142.51,142.47,0.04932879]
[1768736904413,5.25414788,142.5,142.47,0.04932879]
[1768736904603,3.26372909,142.51,142.47,0.04932879]
[1768736904807,5.25414788,142.5,142.47,0.04932879]
[1768736905107,3.26372909,142.51,142.47,0.04932879]
[1768736905312,5.25387938,142.5,142.47,0.04932879]
[1768736905611,3.26372909,142.51,142.47,0.04932879]
[1768736905804,5.26043376,142.5,142.47,0.04932879]
[1768736906006,3.26372909,142.51,142.47,0.04932879]
[1768736906206,5.26043376,142.5,142.47,0.04932879]
[1768736906406,3.26372909,142.51,142.47,0.04932879]
[1768736906606,5.26009904,142.5,142.47,0.04932879]
[1768736906810,3.26372909,142.51,142.47,0.04932879]
[1768736907010,5.26009904,142.5,142.47,0.04932879]
[1768736907210,3.26372909,142.51,142.47,0.04932879]
[1768736907412,5.2597959,142.5,142.47,0.04932879]
[1768736907715,3.26372909,142.51,142.47,0.04932879]
[1768736907914,5.2597959,142.5,142.47,0.04932879]
[1768736908114,3.26372909,142.51,142.47,0.04932879]
[1768736932635,3.07912985,142.49,142.4,3.09310985]
[1768736932930,3.07912985,142.47,142.4,3.09310985]
[1768736934030,3.13120836,142.45,142.38,123.66021746]
[1768736934234,3.13120836,142.45,142.39,3.09310985]
[1768736934624,3.07912985,142.45,142.39,3.09310985]
[1768736935027,0.04431006,142.43,142.39,3.09310985]
[1768736935235,3.07912985,142.45,142.41,0.05144444]
[1768736940250,21.09,142.57,142.41,0.05144444]
[1768736940449,21.09,142.55,142.41,0.05144444]
[1768736940638,21.09,142.53,142.41,0.05144444]
[1768736940949,21.09,142.51,142.4,3.09310985]
[1768736941150,26.36867349,142.5,142.4,3.09310985]
[1768736941448,5.27867349,142.49,142.4,3.09310985]
[1768736941649,0.04694352,142.47,142.4,3.09310985]
[1768736942250,3.07912985,142.46,142.4,3.09310985]
[1768736948350,3.07912985,142.46,142.36,3.09310985]
[1768736948559,3.07912985,142.44,142.36,3.09310985]
[1768736949652,3.07912985,142.44,142.39,0.04989972]
[1768736962664,3.31618474,142.43,142.39,0.04989972]
[1768736963267,21.09,142.5,142.37,3.09310985]
[1768736963564,21.09,142.48,142.37,3.09310985]
[1768736963764,6.74,142.51,142.37,3.09310985]
[1768736963765,26.3549569,142.47,142.37,3.09310985]
[1768736963961,5.2649569,142.46,142.37,3.09310985]
[1768736964158,21.09,142.47,142.41,0.050248]
[1768736964360,5.26497633,142.46,142.41,0.050248]
[1768736964559,21.09,142.47,142.41,0.050248]
[1768736964766,5.26497633,142.46,142.41,0.050248]
[1768736965070,0.26120058,142.49,142.41,0.050248]
[1768736965263,0.26120058,142.46,142.41,0.050248]
[1768736965665,0.26120058,142.46,142.38,3.24796949]
[1768736966060,0.26120058,142.46,142.42,0.05086566]
[1768736972159,5.56599225,142.45,142.42,0.05086566]
[1768736972360,0.26120058,142.45,142.42,0.05086566]
[1768736977167,5.31640838,142.44,142.42,0.05086566]
[1768736977367,0.26120058,142.45,142.42,0.05086566]
[1768736977570,5.31640838,142.44,142.42,0.05086566]
[1768736977769,0.26120058,142.45,142.42,0.05086566]
[1768736977968,5.31640838,142.44,142.42,0.05086566]
[1768736978271,73.32,142.53,142.42,0.05086566]
[1768736978571,26.40741089,142.52,142.42,0.05086566]
[1768736978868,21.09,142.5,142.39,3.0772999]
[1768736979070,21.09,142.48,142.39,3.0772999]
[1768736979271,5.31741089,142.47,142.39,3.0772999]
[1768736979463,21.09,142.48,142.39,3.0772999]
[1768736979464,5.31741089,142.46,142.39,3.0772999]
[1768736979664,5.31741089,142.45,142.39,3.0772999]
[1768736979872,5.31741089,142.44,142.39,3.0772999]
[1768736980069,21.09,142.52,142.39,3.0772999]
[1768736980270,21.09,142.5,142.39,3.0772999]
[1768736980472,21.09,142.48,142.39,3.0772999]
[1768736980771,5.31806671,142.47,142.39,3.0772999]
[1768736980966,5.31806671,142.46,142.39,3.0772999]
[1768736981173,5.36951939,142.45,142.39,3.0772999]
[1768736981377,5.31806671,142.44,142.39,3.0772999]
[1768736984674,0.05145268,142.45,142.39,3.0772999]
[1768736989177,5.32156039,142.44,142.39,3.0772999]
[1768736989378,0.05145268,142.45,142.39,3.0772999]
[1768736989673,5.32156039,142.44,142.39,3.0772999]
[1768736989876,0.05145268,142.45,142.39,3.0772999]
[1768736990075,5.32156039,142.44,142.39,3.0772999]
[1768736990276,0.05145268,142.45,142.39,3.0772999]
[1768736990477,5.32231771,142.44,142.39,3.0772999]
[1768736990677,0.05145268,142.45,142.39,3.0772999]
[1768736990873,5.32231771,142.44,142.39,3.0772999]
[1768736991073,0.05145268,142.45,142.39,3.0772999]
[1768736991276,5.3231045,142.44,142.39,3.0772999]
[1768736991477,0.05145268,142.45,142.39,3.0772999]
[1768736991675,5.3231045,142.44,142.39,3.0772999]
[1768736991974,0.05145268,142.45,142.39,3.0772999]
[1768736992178,5.3231045,142.44,142.39,3.0772999]
[1768736992381,0.05145268,142.45,142.39,3.0772999]
[1768736992677,5.32400349,142.44,142.39,3.0772999]
[1768736992876,0.05145268,142.45,142.39,3.0772999]
[1768736993077,5.32400349,142.44,142.39,3.0772999]
[1768736993280,0.05145268,142.45,142.39,3.0772999]
[1768736993576,5.32506771,142.44,142.39,3.0772999]
[1768736993786,0.05145268,142.45,142.39,3.0772999]
[1768736993980,5.32506771,142.44,142.39,3.0772999]
[1768736994183,0.05145268,142.45,142.39,3.0772999]
[1768736994381,5.32493158,142.44,142.39,3.0772999]
[1768736994581,0.05145268,142.45,142.39,3.0772999]
[1768736994783,5.32493158,142.44,142.39,3.0772999]
[1768736994984,0.05145268,142.45,142.39,3.0772999]
[1768736995175,5.32482266,142.44,142.39,3.0772999]
[1768736995377,0.05145268,142.45,142.39,3.0772999]
[1768736995577,5.32482266,142.44,142.39,3.0772999]
[1768736995874,0.05145268,142.45,142.39,3.0772999]
[1768736996175,5.31866555,142.44,142.39,3.0772999]
[1768736996482,0.05145268,142.45,142.39,3.0772999]
[1768736996784,5.3185718,142.44,142.39,3.0772999]
[1768736997084,0.05145268,142.45,142.39,3.0772999]
[1768736997273,5.31849282,142.44,142.39,3.0772999]
[1768736997474,0.05145268,142.45,142.39,3.0772999]
[1768736997678,5.31849282,142.44,142.39,3.0772999]
[1768736997980,0.05145268,142.45,142.39,3.0772999]
[1768736998184,5.31849282,142.44,142.39,3.0772999]
[1768736998482,0.05145268,142.45,142.39,3.0772999]
[1768736998682,5.31842806,142.44,142.39,3.0772999]
[1768736998883,0.05145268,142.45,142.39,3.0772999]
[1768736999082,5.31842806,142.44,142.39,3.0772999]
[1768736999283,0.05145268,142.45,142.39,3.0772999]
[1768736999484,5.31837706,142.44,142.39,3.0772999]
[1768736999687,0.05145268,142.45,142.39,3.0772999]
[1768737009093,5.31875793,142.44,142.39,3.0772999]
[1768737009292,0.05145268,142.45,142.39,3.0772999]
[1768737010096,5.31882611,142.44,142.39,3.0772999]
[1768737010396,0.05145268,142.45,142.39,3.0772999]
[1768737010601,5.31879644,142.44,142.39,3.0772999]
[1768737010894,0.05145268,142.45,142.39,3.0772999]
[1768737011192,5.31879644,142.44,142.39,3.0772999]
[1768737011386,0.05145268,142.45,142.39,3.0772999]
[1768737011585,5.31889871,142.44,142.39,3.0772999]
[1768737011784,0.05145268,142.45,142.39,3.0772999]
[1768737011985,5.31889871,142.44,142.39,3.0772999]
[1768737012191,0.05145268,142.45,142.39,3.0772999]
[1768737012393,5.31902803,142.44,142.39,3.0772999]
[1768737012587,0.05145268,142.45,142.39,3.0772999]
[1768737012791,5.31902803,142.44,142.39,3.0772999]
[1768737012997,0.05145268,142.45,142.39,3.0772999]
[1768737013195,5.31912206,142.44,142.39,3.0772999]
[1768737013395,0.05145268,142.45,142.39,3.0772999]
[1768737013598,5.31911261,142.44,142.39,3.0772999]
[1768737013790,0.05145268,142.45,142.39,3.0772999]
[1768737013990,5.31911261,142.44,142.39,3.0772999]
[1768737014190,0.05145268,142.45,142.39,3.0772999]
[1768737014394,5.31921923,142.44,142.39,3.0772999]
[1768737014594,0.05145268,142.45,142.39,3.0772999]
[1768737014790,5.31921923,142.44,142.39,3.0772999]
[1768737014990,0.05145268,142.45,142.39,3.0772999]
[1768737015190,5.31921923,142.44,142.39,3.0772999]
[1768737015392,0.05145268,142.45,142.39,3.0772999]
[1768737015591,5.31934929,142.44,142.39,3.0772999]
[1768737015792,0.05145268,142.45,142.39,3.0772999]
[1768737015993,5.31934929,142.44,142.39,3.0772999]
[1768737016195,0.05145268,142.45,142.39,3.0772999]
[1768737016396,5.31950467,142.44,142.39,3.0772999]
[1768737016596,0.05145268,142.45,142.39,3.0772999]
[1768737016796,5.31950467,142.44,142.39,3.0772999]
[1768737016997,0.05145268,142.45,142.39,3.0772999]
[1768737017199,5.31950467,142.44,142.39,3.0772999]
[1768737017400,0.05145268,142.45,142.39,3.0772999]
[1768737017600,5.31968789,142.44,142.39,3.0772999]
[1768737017803,0.05145268,142.45,142.39,3.0772999]
[1768737018101,5.31968789,142.44,142.39,3.0772999]
[1768737018298,0.05145268,142.45,142.39,3.0772999]
[1768737018497,5.31990233,142.44,142.39,3.0772999]
[1768737018698,0.05145268,142.45,142.39,3.0772999]
[1768737018905,5.31990233,142.44,142.39,3.0772999]
[1768737019105,0.05145268,142.45,142.39,3.0772999]
[1768737019306,5.32025351,142.44,142.39,3.0772999]
[1768737019605,0.05145268,142.45,142.39,3.0772999]
[1768737019806,5.32026405,142.44,142.39,3.0772999]
[1768737020005,0.05145268,142.45,142.39,3.0772999]
[1768737020194,5.32068791,142.44,142.39,3.0772999]
[1768737020399,0.05145268,142.45,142.39,3.0772999]
[1768737020600,5.320697,142.44,142.39,3.0772999]
[1768737020800,0.05145268,142.45,142.39,3.0772999]
[1768737021001,5.320697,142.44,142.39,3.0772999]
[1768737021196,0.05145268,142.45,142.39,3.0772999]
[1768737021408,5.3208538,142.44,142.39,3.0772999]
[1768737021603,0.05145268,142.45,142.39,3.0772999]
[1768737021803,5.3208538,142.44,142.39,3.0772999]
[1768737022009,0.05145268,142.45,142.39,3.0772999]
[1768737022308,5.32102391,142.44,142.39,3.0772999]
[1768737022507,0.05145268,142.45,142.39,3.0772999]
[1768737022710,5.32103613,142.44,142.39,3.0772999]
[1768737022911,0.05145268,142.45,142.39,3.0772999]
[1768737023211,5.32103613,142.44,142.39,3.0772999]
[1768737023407,0.05145268,142.45,142.39,3.0772999]
[1768737023613,5.32124845,142.44,142.39,3.0772999]
[1768737023812,0.05145268,142.45,142.39,3.0772999]
[1768737024013,5.32124845,142.44,142.39,3.0772999]
[1768737024215,0.05145268,142.45,142.39,3.0772999]
[1768737024513,5.32139243,142.44,142.39,3.0772999]
[1768737024718,0.05145268,142.45,142.39,3.0772999]
[1768737024914,5.32139243,142.44,142.39,3.0772999]
[1768737025214,0.05145268,142.45,142.39,3.0772999]
[1768737025402,5.32155881,142.44,142.39,3.0772999]
[1768737025603,0.05145268,142.45,142.39,3.0772999]
[1768737025904,5.31422945,142.44,142.39,3.0772999]
[1768737026106,0.05145268,142.45,142.39,3.0772999]
[1768737026315,5.31440764,142.44,142.39,3.0772999]
[1768737026514,0.05145268,142.45,142.39,3.0772999]
[1768737026716,5.31442193,142.44,142.39,3.0772999]
[1768737027015,0.05145268,142.45,142.39,3.0772999]
[1768737027214,5.31463369,142.44,142.39,3.0772999]
[1768737027418,0.05145268,142.45,142.39,3.0772999]
[1768737027616,111.99,142.54,142.39,3.0772999]
[1768737027817,21.09,142.52,142.39,3.0772999]
[1768737028019,21.09,142.5,142.41,0.04718593]
[1768737028213,26.4045078,142.49,142.41,0.04718593]
[1768737028414,5.3145078,142.48,142.39,3.0772999]
[1768737028612,5.3145078,142.47,142.39,3.0772999]
[1768737028812,5.3145078,142.46,142.39,3.0772999]
[1768737029007,5.3145078,142.45,142.42,0.0531621]
[1768737029218,21.09,142.53,142.42,0.0531621]
[1768737029516,21.09,142.51,142.42,0.0531621]
[1768737029717,21.09,142.49,142.39,3.0772999]
[1768737029917,5.31386577,142.48,142.39,3.0772999]
[1768737030118,5.31386577,142.47,142.39,3.0772999]
[1768737030310,0.05219409,142.45,142.39,3.0772999]
[1768737058941,5.30841878,142.44,142.39,3.0772999]
[1768737059242,0.05219409,142.45,142.39,3.0772999]
[1768737059435,5.30836319,142.44,142.39,3.0772999]
[1768737059634,0.05219409,142.45,142.39,3.0772999]
[1768737099983,5.22763957,142.44,142.39,3.0772999]
[1768737100174,0.05219409,142.45,142.39,3.0772999]
[1768737100371,5.22781986,142.44,142.39,3.0772999]
[1768737100573,0.05219409,142.45,142.39,3.0772999]
[1768737100777,5.22800592,142.44,142.39,3.0772999]